[Event "Titled Tuesday Blitz June 14 Late 2022"]
[White "Titichoca Daza, Daniel"]
[Black "Djokic, Mihailo"]
[WhiteFideId "3309550"]
[BlackFideId "976440"]
[WhiteElo "1912"]
[BlackElo "2255"]
[Result "0-1"]
[Round "04"]
[TimeControl "180+1"]
[Date "2022.06.15"]
[WhiteClock "0:00:01"]
[BlackClock "0:00:07"]

1. Nf3 {[%clk 0:03:00]}  Nf6 {[%clk 0:03:00]} 2. g3 {[%clk 0:03:01]}  g6 {[%clk 0:03:00]} 3. Bg2 {[%clk 0:03:02]}  Bg7 {[%clk 0:03:01]} 4. O-O {[%clk 0:03:03]}  O-O {[%clk 0:03:01]} 5. c4 {[%clk 0:03:02]}  d6 {[%clk 0:03:02]} 6. d4 {[%clk 0:03:01]}  Nc6 {[%clk 0:03:02]} 7. Nc3 {[%clk 0:03:01]}  a6 {[%clk 0:03:02]} 8. e3 {[%clk 0:02:55]}  e5 {[%clk 0:03:02]} 9. a3 {[%clk 0:02:47]}  Bf5 {[%clk 0:03:00]} 10. b4 {[%clk 0:02:46]}  Ne4 {[%clk 0:02:55]} 11. Nd5 {[%clk 0:02:43]}  exd4 {[%clk 0:02:49]} 12. exd4 {[%clk 0:02:40]}  Bg4 {[%clk 0:02:44]} 13. Be3 {[%clk 0:02:34]}  Qd7 {[%clk 0:02:28]} 14. h3 {[%clk 0:02:31]}  Bxh3 {[%clk 0:02:23]} 15. Qc2 {[%clk 0:02:29]}  Bxg2 {[%clk 0:02:23]} 16. Kxg2 {[%clk 0:02:28]}  Rfe8 {[%clk 0:02:14]} 17. Rh1 {[%clk 0:02:27]}  h5 {[%clk 0:02:12]} 18. Rh4 {[%clk 0:02:26]}  Nf6 {[%clk 0:02:08]} 19. Nf4 {[%clk 0:02:22]}  Ng4 {[%clk 0:02:04]} 20. Bd2 {[%clk 0:01:48]}  Nxd4 {[%clk 0:01:58]} 21. Nxd4 {[%clk 0:01:46]}  Bxd4 {[%clk 0:01:58]} 22. Rah1 {[%clk 0:01:46]}  Nxf2 {[%clk 0:01:33]} 23. Bc3 {[%clk 0:01:03]}  Bxc3 {[%clk 0:01:00]} 24. Qxc3 {[%clk 0:01:03]}  Ne4 {[%clk 0:00:56]} 25. Qd4 {[%clk 0:01:00]}  Qa4 {[%clk 0:00:35]} 26. Qd3 {[%clk 0:00:34]}  Ng5 {[%clk 0:00:11]} 27. Nd5 {[%clk 0:00:14]}  Qc6 {[%clk 0:00:10]} 28. Kf2 {[%clk 0:00:06]}  Kg7 {[%clk 0:00:09]} 29. Qd4+ {[%clk 0:00:05]}  Re5 {[%clk 0:00:09]} 30. Rxh5 {[%clk 0:00:04]}  gxh5 {[%clk 0:00:09]} 31. Rxh5 {[%clk 0:00:04]}  f6 {[%clk 0:00:10]} 32. Qf4 {[%clk 0:00:02]}  Rxd5 {[%clk 0:00:05]} 33. cxd5 {[%clk 0:00:03]}  Qxd5 {[%clk 0:00:06]} 34. g4 {[%clk 0:00:03]}  Qe5 {[%clk 0:00:05]} 35. Qc4 {[%clk 0:00:02]}  Ne4+ {[%clk 0:00:04]} 36. Kf1 {[%clk 0:00:02]}  Ng3+ {[%clk 0:00:04]} 37. Kg2 {[%clk 0:00:02]}  Nxh5 {[%clk 0:00:04]} 38. Qxc7+ {[%clk 0:00:02]}  Kg6 {[%clk 0:00:03]} 39. gxh5+ {[%clk 0:00:03]}  Qxh5 {[%clk 0:00:03]} 40. Qxb7 {[%clk 0:00:03]}  Rg8 {[%clk 0:00:02]} 41. Qxa6 {[%clk 0:00:01]}  Kf7+ {[%clk 0:00:02]} 42. Kf2 {[%clk 0:00:02]}  Qf5+ {[%clk 0:00:03]} 43. Ke3 {[%clk 0:00:02]}  Rg3+ {[%clk 0:00:03]} 44. Kd4 {[%clk 0:00:03]}  Qe5+ {[%clk 0:00:04]} 45. Kc4 {[%clk 0:00:03]}  Qe2+ {[%clk 0:00:04]} 46. Kd5 {[%clk 0:00:02]}  Qxa6 {[%clk 0:00:05]} 47. a4 {[%clk 0:00:02]}  Rd3+ {[%clk 0:00:05]} 48. Ke4 {[%clk 0:00:02]}  Qc4+ {[%clk 0:00:06]} 49. Kf5 {[%clk 0:00:01]}  Rd5# {[%clk 0:00:07]} 0-1


[Site "https://www.chess.com"]

[Event "Titled Tuesday Blitz June 14 Late 2022"]
[White "Vasquez Schroeder, Rodrigo"]
[Black "Ivic, Velimir"]
[WhiteFideId "3400042"]
[BlackFideId "950122"]
[WhiteElo "2567"]
[BlackElo "2610"]
[Result "0-1"]
[Round "04"]
[TimeControl "180+1"]
[Date "2022.06.14"]
[WhiteClock "0:01:40"]
[BlackClock "0:00:37"]

1. e4 {[%clk 0:03:00]}  c5 {[%clk 0:02:59]} 2. Nf3 {[%clk 0:03:00]}  Nc6 {[%clk 0:03:00]} 3. d4 {[%clk 0:03:00]}  cxd4 {[%clk 0:03:01]} 4. Nxd4 {[%clk 0:03:01]}  Nf6 {[%clk 0:03:02]} 5. Nc3 {[%clk 0:03:01]}  e5 {[%clk 0:03:03]} 6. Ndb5 {[%clk 0:03:01]}  d6 {[%clk 0:03:03]} 7. Bg5 {[%clk 0:03:01]}  a6 {[%clk 0:03:03]} 8. Na3 {[%clk 0:03:02]}  b5 {[%clk 0:03:04]} 9. Nd5 {[%clk 0:03:02]}  Be7 {[%clk 0:03:05]} 10. Bxf6 {[%clk 0:03:02]}  Bxf6 {[%clk 0:03:05]} 11. c3 {[%clk 0:03:03]}  Bg5 {[%clk 0:03:06]} 12. Nc2 {[%clk 0:03:03]}  Rb8 {[%clk 0:03:07]} 13. Be2 {[%clk 0:03:01]}  O-O {[%clk 0:03:05]} 14. O-O {[%clk 0:03:01]}  a5 {[%clk 0:03:02]} 15. Qd3 {[%clk 0:03:00]}  Ne7 {[%clk 0:03:00]} 16. Nce3 {[%clk 0:02:57]}  Bxe3 {[%clk 0:02:57]} 17. Nxe3 {[%clk 0:02:57]}  Be6 {[%clk 0:02:58]} 18. Rfd1 {[%clk 0:02:57]}  Rb6 {[%clk 0:02:58]} 19. Rd2 {[%clk 0:02:55]}  Qc7 {[%clk 0:02:57]} 20. b3 {[%clk 0:02:52]}  Rc8 {[%clk 0:02:54]} 21. Rc1 {[%clk 0:02:51]}  Qc5 {[%clk 0:02:52]} 22. h3 {[%clk 0:02:49]}  g6 {[%clk 0:02:43]} 23. Bg4 {[%clk 0:02:48]}  Kg7 {[%clk 0:02:41]} 24. Bxe6 {[%clk 0:02:47]}  fxe6 {[%clk 0:02:42]} 25. Rcc2 {[%clk 0:02:44]}  Rbc6 {[%clk 0:02:41]} 26. c4 {[%clk 0:02:41]}  b4 {[%clk 0:02:41]} 27. Rd1 {[%clk 0:02:40]}  h5 {[%clk 0:02:39]} 28. Rcd2 {[%clk 0:02:40]}  Ng8 {[%clk 0:02:39]} 29. Nf1 {[%clk 0:02:36]}  Rf8 {[%clk 0:02:38]} 30. Qe3 {[%clk 0:02:33]}  Nf6 {[%clk 0:02:07]} 31. f3 {[%clk 0:02:26]}  Rfc8 {[%clk 0:01:48]} 32. Qxc5 {[%clk 0:02:23]}  dxc5 {[%clk 0:01:49]} 33. h4 {[%clk 0:02:23]}  a4 {[%clk 0:01:48]} 34. Rd6 {[%clk 0:02:15]}  Kf7 {[%clk 0:01:43]} 35. Kf2 {[%clk 0:02:13]}  Ke7 {[%clk 0:01:41]} 36. R6d3 {[%clk 0:02:12]}  Ra6 {[%clk 0:01:38]} 37. Ne3 {[%clk 0:02:11]}  Rc7 {[%clk 0:01:28]} 38. g4 {[%clk 0:02:11]}  axb3 {[%clk 0:01:28]} 39. axb3 {[%clk 0:02:10]}  Ra2+ {[%clk 0:01:28]} 40. R1d2 {[%clk 0:02:08]}  Rxd2+ {[%clk 0:01:25]} 41. Rxd2 {[%clk 0:02:08]}  Ra7 {[%clk 0:01:26]} 42. g5 {[%clk 0:01:55]}  Nd7 {[%clk 0:01:25]} 43. Nd1 {[%clk 0:01:52]}  Ra3 {[%clk 0:01:21]} 44. Rb2 {[%clk 0:01:52]}  Nb8 {[%clk 0:01:19]} 45. Ne3 {[%clk 0:01:50]}  Nc6 {[%clk 0:01:18]} 46. Nc2 {[%clk 0:01:51]}  Ra8 {[%clk 0:01:18]} 47. Ke2 {[%clk 0:01:51]}  Nd4+ {[%clk 0:01:15]} 48. Nxd4 {[%clk 0:01:50]}  exd4 {[%clk 0:01:15]} 49. f4 {[%clk 0:01:49]}  Ra1 {[%clk 0:01:13]} 50. Kf3 {[%clk 0:01:47]}  Rf1+ {[%clk 0:00:41]} 51. Kg3 {[%clk 0:01:47]}  e5 {[%clk 0:00:42]} 52. fxe5 {[%clk 0:01:41]}  Ke6 {[%clk 0:00:42]} 53. Rf2 {[%clk 0:01:34]}  Rxf2 {[%clk 0:00:39]} 54. Kxf2 {[%clk 0:01:35]}  Kxe5 {[%clk 0:00:40]} 55. Kf3 {[%clk 0:01:35]}  d3 {[%clk 0:00:38]} 56. Ke3 {[%clk 0:01:36]}  d2 {[%clk 0:00:38]} 57. Kxd2 {[%clk 0:01:36]}  Kxe4 {[%clk 0:00:39]} 58. Ke2 {[%clk 0:01:36]}  Kf4 {[%clk 0:00:40]} 59. Kd3 {[%clk 0:01:37]}  Kf3 {[%clk 0:00:40]} 60. Kd2 {[%clk 0:01:35]}  Kg3 {[%clk 0:00:40]} 61. Ke3 {[%clk 0:01:35]}  Kxh4 {[%clk 0:00:40]} 62. Kf4 {[%clk 0:01:36]}  Kh3 {[%clk 0:00:40]} 63. Ke5 {[%clk 0:01:36]}  h4 {[%clk 0:00:39]} 64. Kf6 {[%clk 0:01:37]}  Kg4 {[%clk 0:00:38]} 65. Kxg6 {[%clk 0:01:37]}  h3 {[%clk 0:00:39]} 66. Kf6 {[%clk 0:01:38]}  h2 {[%clk 0:00:40]} 67. g6 {[%clk 0:01:39]}  h1=Q {[%clk 0:00:40]} 68. g7 {[%clk 0:01:40]}  Qh7 {[%clk 0:00:37]} 0-1


[Site "https://www.chess.com"]

[Event "Titled Tuesday Blitz June 14 Late 2022"]
[White "Xiong, Jeffery"]
[Black "Shimanov, Aleksandr"]
[WhiteFideId "2047640"]
[BlackFideId "4198603"]
[WhiteElo "2714"]
[BlackElo "2605"]
[Result "1/2-1/2"]
[Round "04"]
[TimeControl "180+1"]
[Date "2022.06.14"]
[WhiteClock "0:00:04"]
[BlackClock "0:00:01"]

1. e4 {[%clk 0:03:00]}  d5 {[%clk 0:02:59]} 2. exd5 {[%clk 0:03:01]}  Qxd5 {[%clk 0:02:59]} 3. Nc3 {[%clk 0:03:01]}  Qe5+ {[%clk 0:03:00]} 4. Be2 {[%clk 0:02:57]}  Bg4 {[%clk 0:02:59]} 5. d4 {[%clk 0:02:58]}  Bxe2 {[%clk 0:02:59]} 6. Ngxe2 {[%clk 0:02:59]}  Qa5 {[%clk 0:03:00]} 7. b4 {[%clk 0:02:59]}  Qh5 {[%clk 0:03:00]} 8. Qd3 {[%clk 0:02:49]}  e6 {[%clk 0:02:59]} 9. b5 {[%clk 0:02:49]}  Nf6 {[%clk 0:02:35]} 10. Nf4 {[%clk 0:02:49]}  Qf5 {[%clk 0:02:35]} 11. Qxf5 {[%clk 0:02:47]}  exf5 {[%clk 0:02:36]} 12. O-O {[%clk 0:02:47]}  Bd6 {[%clk 0:02:20]} 13. Re1+ {[%clk 0:02:47]}  Kd7 {[%clk 0:02:20]} 14. Nd3 {[%clk 0:02:48]}  Re8 {[%clk 0:02:03]} 15. Rd1 {[%clk 0:02:29]}  Kc8 {[%clk 0:01:56]} 16. a4 {[%clk 0:02:12]}  Nbd7 {[%clk 0:01:52]} 17. Nb2 {[%clk 0:01:56]}  Ne4 {[%clk 0:01:10]} 18. Nxe4 {[%clk 0:01:49]}  fxe4 {[%clk 0:01:11]} 19. Nc4 {[%clk 0:01:44]}  Nb6 {[%clk 0:01:10]} 20. Ne3 {[%clk 0:01:39]}  a5 {[%clk 0:00:56]} 21. g3 {[%clk 0:01:36]}  Bb4 {[%clk 0:00:44]} 22. Bb2 {[%clk 0:01:32]}  g6 {[%clk 0:00:42]} 23. c4 {[%clk 0:01:00]}  c5 {[%clk 0:00:41]} 24. dxc5 {[%clk 0:00:49]}  Bxc5 {[%clk 0:00:41]} 25. Bd4 {[%clk 0:00:50]}  Nd7 {[%clk 0:00:37]} 26. Nd5 {[%clk 0:00:46]}  Re6 {[%clk 0:00:35]} 27. Kg2 {[%clk 0:00:44]}  b6 {[%clk 0:00:33]} 28. Nf4 {[%clk 0:00:37]}  Rd6 {[%clk 0:00:25]} 29. Bc3 {[%clk 0:00:37]}  Ra7 {[%clk 0:00:20]} 30. h4 {[%clk 0:00:36]}  h5 {[%clk 0:00:16]} 31. Nd5 {[%clk 0:00:35]}  Re6 {[%clk 0:00:15]} 32. Ra2 {[%clk 0:00:35]}  Bf8 {[%clk 0:00:14]} 33. Nf4 {[%clk 0:00:32]}  Rd6 {[%clk 0:00:14]} 34. Nd5 {[%clk 0:00:31]}  Nc5 {[%clk 0:00:13]} 35. Bd4 {[%clk 0:00:23]}  Re6 {[%clk 0:00:12]} 36. Be3 {[%clk 0:00:24]}  Rd7 {[%clk 0:00:12]} 37. Kf1 {[%clk 0:00:18]}  Kb7 {[%clk 0:00:12]} 38. Ke2 {[%clk 0:00:18]}  Nd3 {[%clk 0:00:11]} 39. Rad2 {[%clk 0:00:14]}  f5 {[%clk 0:00:09]} 40. Nf4 {[%clk 0:00:13]}  Nxf4+ {[%clk 0:00:09]} 41. Bxf4 {[%clk 0:00:14]}  Rxd2+ {[%clk 0:00:10]} 42. Rxd2 {[%clk 0:00:15]}  Kc8 {[%clk 0:00:10]} 43. Be3 {[%clk 0:00:13]}  Kc7 {[%clk 0:00:10]} 44. Rd5 {[%clk 0:00:13]}  Bd6 {[%clk 0:00:08]} 45. c5 {[%clk 0:00:06]}  bxc5 {[%clk 0:00:08]} 46. Bxc5 {[%clk 0:00:07]}  Bxc5 {[%clk 0:00:08]} 47. Rxc5+ {[%clk 0:00:08]}  Kb6 {[%clk 0:00:07]} 48. Rc8 {[%clk 0:00:09]}  Rd6 {[%clk 0:00:07]} 49. Rg8 {[%clk 0:00:07]}  Kc5 {[%clk 0:00:07]} 50. Ra8 {[%clk 0:00:04]}  Kb4 {[%clk 0:00:07]} 51. Ra6 {[%clk 0:00:05]}  Rd7 {[%clk 0:00:07]} 52. Rxg6 {[%clk 0:00:03]}  Kxa4 {[%clk 0:00:07]} 53. Rg5 {[%clk 0:00:04]}  Rd5 {[%clk 0:00:07]} 54. b6 {[%clk 0:00:05]}  Rb5 {[%clk 0:00:07]} 55. b7 {[%clk 0:00:04]}  Kb4 {[%clk 0:00:07]} 56. Rxf5 {[%clk 0:00:04]}  Rxb7 {[%clk 0:00:07]} 57. Re5 {[%clk 0:00:04]}  a4 {[%clk 0:00:08]} 58. Rxe4+ {[%clk 0:00:05]}  Kb3 {[%clk 0:00:08]} 59. Re5 {[%clk 0:00:03]}  a3 {[%clk 0:00:08]} 60. Rxh5 {[%clk 0:00:03]}  Rb4 {[%clk 0:00:08]} 61. Rd5 {[%clk 0:00:02]}  a2 {[%clk 0:00:04]} 62. Rd1 {[%clk 0:00:03]}  Ka3 {[%clk 0:00:03]} 63. Ra1 {[%clk 0:00:01]}  Rb1 {[%clk 0:00:03]} 64. Rxa2+ {[%clk 0:00:02]}  Kxa2 {[%clk 0:00:04]} 65. h5 {[%clk 0:00:02]}  Kb3 {[%clk 0:00:04]} 66. Kd3 {[%clk 0:00:02]}  Rd1+ {[%clk 0:00:04]} 67. Ke4 {[%clk 0:00:03]}  Kc4 {[%clk 0:00:05]} 68. f4 {[%clk 0:00:03]}  Re1+ {[%clk 0:00:05]} 69. Kf5 {[%clk 0:00:04]}  Kd5 {[%clk 0:00:06]} 70. g4 {[%clk 0:00:04]}  Kd6 {[%clk 0:00:06]} 71. g5 {[%clk 0:00:02]}  Ke7 {[%clk 0:00:07]} 72. Kg6 {[%clk 0:00:03]}  Kf8 {[%clk 0:00:05]} 73. Kh7 {[%clk 0:00:03]}  Re7+ {[%clk 0:00:05]} 74. Kh8 {[%clk 0:00:04]}  Kf7 {[%clk 0:00:04]} 75. f5 {[%clk 0:00:02]}  Re8+ {[%clk 0:00:02]} 76. Kh7 {[%clk 0:00:02]}  Rc8 {[%clk 0:00:02]} 77. h6 {[%clk 0:00:03]}  Rd8 {[%clk 0:00:01]} 78. f6 {[%clk 0:00:01]}  Rc8 {[%clk 0:00:01]} 79. g6+ {[%clk 0:00:02]}  Kxf6 {[%clk 0:00:01]} 80. g7 {[%clk 0:00:03]}  Kf7 {[%clk 0:00:01]} 81. g8=Q+ {[%clk 0:00:04]}  Rxg8 {[%clk 0:00:01]} 1/2-1/2


[Site "https://www.chess.com"]

[Event "Titled Tuesday Blitz June 14 Late 2022"]
[White "Zhigalko, Sergei"]
[Black "Artemenko, Oleg"]
[WhiteFideId "13502956"]
[BlackFideId "14201798"]
[WhiteElo "2662"]
[BlackElo "2287"]
[Result "0-1"]
[Round "04"]
[TimeControl "180+1"]
[Date "2022.06.14"]
[WhiteClock "0:00:03"]
[BlackClock "0:00:18"]

1. e4 {[%clk 0:03:00]}  e6 {[%clk 0:03:00]} 2. d4 {[%clk 0:03:00]}  d5 {[%clk 0:03:00]} 3. e5 {[%clk 0:03:00]}  c5 {[%clk 0:03:00]} 4. c3 {[%clk 0:03:01]}  Nc6 {[%clk 0:03:01]} 5. Nf3 {[%clk 0:03:01]}  Qb6 {[%clk 0:03:01]} 6. a3 {[%clk 0:03:01]}  f6 {[%clk 0:03:01]} 7. Bd3 {[%clk 0:03:01]}  fxe5 {[%clk 0:02:55]} 8. dxe5 {[%clk 0:03:00]}  c4 {[%clk 0:02:55]} 9. Bc2 {[%clk 0:03:00]}  Bc5 {[%clk 0:02:55]} 10. O-O {[%clk 0:03:00]}  Bd7 {[%clk 0:02:55]} 11. Nbd2 {[%clk 0:02:57]}  Nge7 {[%clk 0:02:53]} 12. b4 {[%clk 0:02:57]}  cxb3 {[%clk 0:02:53]} 13. Nxb3 {[%clk 0:02:57]}  Na5 {[%clk 0:02:47]} 14. Nbd4 {[%clk 0:02:28]}  Nc4 {[%clk 0:02:37]} 15. Rb1 {[%clk 0:02:10]}  Qa6 {[%clk 0:02:36]} 16. Ng5 {[%clk 0:02:04]}  g6 {[%clk 0:02:31]} 17. Qf3 {[%clk 0:01:48]}  O-O-O {[%clk 0:02:23]} 18. Qh3 {[%clk 0:01:42]}  Bxd4 {[%clk 0:01:54]} 19. cxd4 {[%clk 0:01:38]}  Rdf8 {[%clk 0:01:54]} 20. Bd3 {[%clk 0:01:20]}  h6 {[%clk 0:01:41]} 21. Nf3 {[%clk 0:01:17]}  g5 {[%clk 0:01:37]} 22. Bd2 {[%clk 0:01:07]}  g4 {[%clk 0:01:08]} 23. Qxg4 {[%clk 0:01:01]}  Rhg8 {[%clk 0:01:08]} 24. Qh5 {[%clk 0:00:32]}  Rxf3 {[%clk 0:00:51]} 25. Qxf3 {[%clk 0:00:21]}  Nxd2 {[%clk 0:00:51]} 26. Rfc1+ {[%clk 0:00:09]}  Bc6 {[%clk 0:00:28]} 27. Qe3 {[%clk 0:00:03]}  Nc4 {[%clk 0:00:28]} 28. Qxh6 {[%clk 0:00:03]}  Kd7 {[%clk 0:00:28]} 29. Rc3 {[%clk 0:00:03]}  Qa5 {[%clk 0:00:27]} 30. Rbc1 {[%clk 0:00:03]}  b5 {[%clk 0:00:26]} 31. h4 {[%clk 0:00:03]}  Qb6 {[%clk 0:00:24]} 32. Qf4 {[%clk 0:00:02]}  Qd8 {[%clk 0:00:21]} 33. g3 {[%clk 0:00:01]}  Rf8 {[%clk 0:00:20]} 34. Qg4 {[%clk 0:00:01]}  Nf5 {[%clk 0:00:20]} 35. Bxf5 {[%clk 0:00:01]}  Rxf5 {[%clk 0:00:20]} 36. Qg7+ {[%clk 0:00:01]}  Kc8 {[%clk 0:00:20]} 37. Qxa7 {[%clk 0:00:01]}  Qc7 {[%clk 0:00:19]} 38. Qa6+ {[%clk 0:00:01]}  Qb7 {[%clk 0:00:19]} 39. Qxb7+ {[%clk 0:00:02]}  Kxb7 {[%clk 0:00:19]} 40. f4 {[%clk 0:00:01]}  Be8 {[%clk 0:00:18]} 41. Kf2 {[%clk 0:00:02]}  Bh5 {[%clk 0:00:18]} 42. Rg1 {[%clk 0:00:02]}  Bg4 {[%clk 0:00:18]} 43. Rh1 {[%clk 0:00:02]}  Rh5 {[%clk 0:00:19]} 44. Rb1 {[%clk 0:00:02]}  Ka6 {[%clk 0:00:19]} 45. Rcb3 {[%clk 0:00:02]}  Nd2 {[%clk 0:00:18]} 46. Rxb5 {[%clk 0:00:02]}  Nxb1 {[%clk 0:00:18]} 47. Rxb1 {[%clk 0:00:03]}  Rh8 {[%clk 0:00:18]} 48. Rc1 {[%clk 0:00:03]}  Kb7 {[%clk 0:00:18]} 49. Rb1+ {[%clk 0:00:03]}  Kc7 {[%clk 0:00:19]} 50. Rc1+ {[%clk 0:00:04]}  Kd7 {[%clk 0:00:19]} 51. Rb1 {[%clk 0:00:04]}  Kc7 {[%clk 0:00:19]} 52. Rc1+ {[%clk 0:00:04]}  Kb7 {[%clk 0:00:18]} 53. Rb1+ {[%clk 0:00:04]}  Ka7 {[%clk 0:00:18]} 54. Rc1 {[%clk 0:00:05]}  Rh7 {[%clk 0:00:18]} 55. Rc8 {[%clk 0:00:05]}  Rb7 {[%clk 0:00:19]} 56. Rg8 {[%clk 0:00:05]}  Rb2+ {[%clk 0:00:19]} 57. Ke1 {[%clk 0:00:04]}  Bf3 {[%clk 0:00:18]} 58. Rg6 {[%clk 0:00:03]}  Kb6 {[%clk 0:00:16]} 59. Rxe6+ {[%clk 0:00:03]}  Kb5 {[%clk 0:00:17]} 60. f5 {[%clk 0:00:03]}  Kc4 {[%clk 0:00:17]} 61. f6 {[%clk 0:00:03]}  Kd3 {[%clk 0:00:18]} 0-1


[Site "https://www.chess.com"]

[Event "Titled Tuesday Blitz June 14 Late 2022"]
[White "Zhurbinsky, David"]
[Black "Deac, Bogdan-Daniel"]
[WhiteFideId "2072904"]
[BlackFideId "1226380"]
[WhiteElo "2555"]
[BlackElo "2648"]
[Result "0-1"]
[Round "04"]
[TimeControl "180+1"]
[Date "2022.06.14"]
[WhiteClock "0:00:04"]
[BlackClock "0:01:59"]

1. e4 {[%clk 0:03:00]}  c5 {[%clk 0:02:59]} 2. Nf3 {[%clk 0:03:00]}  d6 {[%clk 0:02:57]} 3. d4 {[%clk 0:03:00]}  cxd4 {[%clk 0:02:58]} 4. Nxd4 {[%clk 0:03:01]}  Nf6 {[%clk 0:02:58]} 5. f3 {[%clk 0:03:02]}  e5 {[%clk 0:02:55]} 6. Nb3 {[%clk 0:03:02]}  a5 {[%clk 0:02:55]} 7. Be3 {[%clk 0:03:01]}  a4 {[%clk 0:02:53]} 8. Nc1 {[%clk 0:03:01]}  d5 {[%clk 0:02:53]} 9. Bb5+ {[%clk 0:02:55]}  Bd7 {[%clk 0:02:50]} 10. Bxd7+ {[%clk 0:02:53]}  Qxd7 {[%clk 0:02:51]} 11. O-O {[%clk 0:02:27]}  dxe4 {[%clk 0:02:50]} 12. Qe2 {[%clk 0:02:23]}  exf3 {[%clk 0:02:47]} 13. Rxf3 {[%clk 0:02:14]}  Nc6 {[%clk 0:02:45]} 14. Nc3 {[%clk 0:02:10]}  Bb4 {[%clk 0:02:40]} 15. Bg5 {[%clk 0:01:47]}  Nd5 {[%clk 0:02:34]} 16. Nxd5 {[%clk 0:01:23]}  Qxd5 {[%clk 0:02:35]} 17. Rd3 {[%clk 0:01:16]}  Qe6 {[%clk 0:02:31]} 18. Qe4 {[%clk 0:00:57]}  O-O {[%clk 0:02:21]} 19. Ne2 {[%clk 0:00:53]}  h6 {[%clk 0:02:14]} 20. Be3 {[%clk 0:00:48]}  Rfd8 {[%clk 0:02:13]} 21. Rad1 {[%clk 0:00:38]}  Rxd3 {[%clk 0:02:12]} 22. Rxd3 {[%clk 0:00:33]}  Qxa2 {[%clk 0:02:08]} 23. Bxh6 {[%clk 0:00:19]}  gxh6 {[%clk 0:02:07]} 24. Rg3+ {[%clk 0:00:19]}  Kf8 {[%clk 0:02:07]} 25. Qe3 {[%clk 0:00:07]}  Qe6 {[%clk 0:02:03]} 26. c3 {[%clk 0:00:03]}  Be7 {[%clk 0:02:02]} 27. Nc1 {[%clk 0:00:04]}  Bg5 {[%clk 0:02:00]} 28. Qc5+ {[%clk 0:00:04]}  Qe7 {[%clk 0:01:59]} 0-1


[Site "https://www.chess.com"]

[Event "Titled Tuesday Blitz June 14 Late 2022"]
[White "Adury, Anant"]
[Black "Perera Alfonso, Rene Humberto"]
[WhiteFideId "30964687"]
[BlackFideId "3514722"]
[WhiteElo "2201"]
[BlackElo "2313"]
[Result "0-1"]
[Round "05"]
[TimeControl "180+1"]
[Date "2022.06.15"]
[WhiteClock "0:00:05"]
[BlackClock "0:00:13"]

1. d4 {[%clk 0:03:00]}  d5 {[%clk 0:02:59]} 2. Nf3 {[%clk 0:02:56]}  Nf6 {[%clk 0:02:52]} 3. c4 {[%clk 0:02:56]}  c6 {[%clk 0:02:51]} 4. Nc3 {[%clk 0:02:55]}  dxc4 {[%clk 0:02:48]} 5. e3 {[%clk 0:02:55]}  b5 {[%clk 0:02:46]} 6. a4 {[%clk 0:02:48]}  b4 {[%clk 0:02:45]} 7. Na2 {[%clk 0:02:46]}  a5 {[%clk 0:02:43]} 8. Bxc4 {[%clk 0:02:46]}  e6 {[%clk 0:02:38]} 9. O-O {[%clk 0:02:45]}  Be7 {[%clk 0:02:37]} 10. b3 {[%clk 0:02:43]}  O-O {[%clk 0:02:36]} 11. Bb2 {[%clk 0:02:43]}  Ba6 {[%clk 0:02:26]} 12. Qc2 {[%clk 0:02:30]}  Qb6 {[%clk 0:02:26]} 13. Bxa6 {[%clk 0:02:28]}  Nxa6 {[%clk 0:02:25]} 14. e4 {[%clk 0:02:29]}  Rac8 {[%clk 0:02:25]} 15. Rad1 {[%clk 0:02:16]}  Rfd8 {[%clk 0:02:20]} 16. Qc4 {[%clk 0:02:06]}  c5 {[%clk 0:02:18]} 17. d5 {[%clk 0:02:05]}  exd5 {[%clk 0:02:18]} 18. exd5 {[%clk 0:02:06]}  Nc7 {[%clk 0:02:16]} 19. Bxf6 {[%clk 0:01:35]}  Bxf6 {[%clk 0:02:17]} 20. Nc1 {[%clk 0:01:25]}  Ne8 {[%clk 0:02:09]} 21. Ne2 {[%clk 0:01:07]}  Nd6 {[%clk 0:02:09]} 22. Qd3 {[%clk 0:01:07]}  c4 {[%clk 0:02:09]} 23. bxc4 {[%clk 0:01:07]}  Rxc4 {[%clk 0:02:07]} 24. Ng3 {[%clk 0:01:06]}  Rc3 {[%clk 0:02:01]} 25. Qb1 {[%clk 0:00:57]}  g6 {[%clk 0:01:47]} 26. Ne4 {[%clk 0:00:52]}  Nxe4 {[%clk 0:01:41]} 27. Qxe4 {[%clk 0:00:53]}  b3 {[%clk 0:01:37]} 28. Ne5 {[%clk 0:00:48]}  b2 {[%clk 0:01:27]} 29. Nd7 {[%clk 0:00:37]}  Qd6 {[%clk 0:00:35]} 30. Nxf6+ {[%clk 0:00:34]}  Qxf6 {[%clk 0:00:36]} 31. Rb1 {[%clk 0:00:30]}  Rc5 {[%clk 0:00:33]} 32. Qe2 {[%clk 0:00:24]}  Rcxd5 {[%clk 0:00:22]} 33. Qxb2 {[%clk 0:00:23]}  Qf4 {[%clk 0:00:19]} 34. Ra1 {[%clk 0:00:18]}  Rd2 {[%clk 0:00:18]} 35. Qb5 {[%clk 0:00:17]}  Qd4 {[%clk 0:00:17]} 36. Rae1 {[%clk 0:00:16]}  Kg7 {[%clk 0:00:14]} 37. Qe5+ {[%clk 0:00:14]}  Kg8 {[%clk 0:00:14]} 38. Qxd4 {[%clk 0:00:13]}  R8xd4 {[%clk 0:00:15]} 39. Ra1 {[%clk 0:00:13]}  Rb2 {[%clk 0:00:15]} 40. Rfe1 {[%clk 0:00:13]}  Rdd2 {[%clk 0:00:15]} 41. Rf1 {[%clk 0:00:13]}  Rb4 {[%clk 0:00:15]} 42. g3 {[%clk 0:00:13]}  Rdd4 {[%clk 0:00:15]} 43. Rfe1 {[%clk 0:00:13]}  Rxa4 {[%clk 0:00:15]} 44. Rxa4 {[%clk 0:00:14]}  Rxa4 {[%clk 0:00:16]} 45. Re8+ {[%clk 0:00:15]}  Kg7 {[%clk 0:00:16]} 46. Ra8 {[%clk 0:00:16]}  Kf6 {[%clk 0:00:17]} 47. Kg2 {[%clk 0:00:14]}  Ra2 {[%clk 0:00:17]} 48. Kf3 {[%clk 0:00:14]}  a4 {[%clk 0:00:18]} 49. Ke3 {[%clk 0:00:13]}  a3 {[%clk 0:00:19]} 50. h4 {[%clk 0:00:14]}  h5 {[%clk 0:00:19]} 51. Kf3 {[%clk 0:00:13]}  Kf5 {[%clk 0:00:19]} 52. Ra5+ {[%clk 0:00:12]}  Kf6 {[%clk 0:00:17]} 53. Ke3 {[%clk 0:00:12]}  Ke6 {[%clk 0:00:17]} 54. f3 {[%clk 0:00:12]}  Ra1 {[%clk 0:00:16]} 55. Kf4 {[%clk 0:00:13]}  a2 {[%clk 0:00:16]} 56. Ra6+ {[%clk 0:00:13]}  Ke7 {[%clk 0:00:16]} 57. Ra7+ {[%clk 0:00:09]}  Ke6 {[%clk 0:00:14]} 58. Ra6+ {[%clk 0:00:10]}  Kd5 {[%clk 0:00:14]} 59. Kg5 {[%clk 0:00:10]}  Ke5 {[%clk 0:00:12]} 60. Ra5+ {[%clk 0:00:10]}  Ke6 {[%clk 0:00:12]} 61. Kf4 {[%clk 0:00:10]}  f6 {[%clk 0:00:12]} 62. Ra6+ {[%clk 0:00:11]}  Kf7 {[%clk 0:00:12]} 63. Ra7+ {[%clk 0:00:11]}  Kf8 {[%clk 0:00:12]} 64. Ra8+ {[%clk 0:00:12]}  Kg7 {[%clk 0:00:13]} 65. Ra7+ {[%clk 0:00:13]}  Kh6 {[%clk 0:00:13]} 66. Ra8 {[%clk 0:00:14]}  g5+ {[%clk 0:00:13]} 67. hxg5+ {[%clk 0:00:15]}  fxg5+ {[%clk 0:00:13]} 68. Kf5 {[%clk 0:00:16]}  h4 {[%clk 0:00:14]} 69. Ra6+ {[%clk 0:00:13]}  Kg7 {[%clk 0:00:13]} 70. Ra7+ {[%clk 0:00:07]}  Kf8 {[%clk 0:00:13]} 71. gxh4 {[%clk 0:00:03]}  gxh4 {[%clk 0:00:14]} 72. Ra8+ {[%clk 0:00:03]}  Ke7 {[%clk 0:00:14]} 73. Kf4 {[%clk 0:00:04]}  h3 {[%clk 0:00:13]} 74. Ra7+ {[%clk 0:00:04]}  Kd6 {[%clk 0:00:13]} 75. Ra6+ {[%clk 0:00:05]}  Kc5 {[%clk 0:00:13]} 0-1


[Site "https://www.chess.com"]